bitfinex-derivatives/quotes_BNBF0:USTF0_20230901
["timestamp","ask_amount","ask_price","bid_price","bid_amount"]
[1693538346459,10.0,216.45,214.28,1.69729196]
[1693538347562,10.0,216.45,214.28,1.86702115]
[1693538347761,10.0,216.45,214.29,0.16972919]
[1693538347960,10.0,216.45,214.28,1.69729196]
[1693538347961,10.0,216.45,214.3,0.16972919]
[1693538348164,10.0,216.45,214.28,1.69729196]
[1693538353167,10.0,216.45,214.29,0.16972919]
[1693538353368,10.0,216.45,214.3,0.16972919]
[1693538353569,10.0,216.45,214.31,0.16972919]
[1693538353763,10.0,216.45,214.32,0.16972919]
[1693538354068,10.0,216.45,214.33,0.16972919]
[1693538354268,10.0,216.45,214.34,0.16972919]
[1693538354469,10.0,216.45,214.35,0.16972919]
[1693538354663,10.0,216.45,214.36,0.16972919]
[1693538354868,10.0,216.45,214.37,0.16972919]
[1693538355066,10.0,216.45,214.38,0.16972919]
[1693538355265,10.0,216.45,214.39,0.16972919]
[1693538355464,10.0,216.45,214.4,0.16972919]
[1693538355665,10.0,216.45,214.41,0.16972919]
[1693538355868,10.0,216.45,214.42,0.16972919]
[1693538356066,10.0,216.45,214.43,0.16972919]
[1693538356270,10.0,216.45,214.44,0.16972919]
[1693538356571,10.0,216.45,214.45,0.16972919]
[1693538356871,10.0,216.45,214.46,0.16972919]
[1693538357071,10.0,216.45,214.47,0.16972919]
[1693538357265,10.0,216.45,214.48,0.16972919]
[1693538357465,10.0,216.45,214.49,0.16972919]
[1693538357669,10.0,216.45,214.5,0.16972919]
[1693538357870,10.0,216.45,214.51,0.16972919]
[1693538358071,10.0,216.45,214.52,0.16972919]
[1693538358272,10.0,216.45,214.53,0.16972919]
[1693538358474,10.0,216.45,214.54,0.16972919]
[1693538358674,10.0,216.45,214.55,0.16972919]
[1693538358972,10.0,216.45,214.56,0.16972919]
[1693538359174,10.0,216.45,214.57,0.16972919]
[1693538359473,10.0,216.45,214.58,0.16972919]
[1693538359672,10.0,216.45,214.59,0.16972919]
[1693538359867,10.0,216.45,214.6,0.16972919]
[1693538360071,10.0,216.45,214.61,0.16972919]
[1693538360370,10.0,216.45,214.62,0.16972919]
[1693538360569,10.0,216.45,214.63,0.16972919]
[1693538360772,10.0,216.45,214.64,0.16972919]
[1693538361073,10.0,216.45,214.65,0.16972919]
[1693538361273,10.0,216.45,214.66,0.16972919]
[1693538361569,10.0,216.45,214.67,0.16972919]
[1693538361872,10.0,216.45,214.68,0.16972919]
[1693538362072,10.0,216.45,214.69,0.16972919]
[1693538362275,10.0,216.45,214.28,1.69729196]
[1693538362276,10.0,216.45,214.7,0.16972919]
[1693538362474,10.0,216.45,214.71,0.16972919]
[1693538362672,10.0,216.45,214.28,1.69729196]
[1693538363770,10.0,216.45,214.28,1.86702115]
[1693538363970,10.0,216.45,214.29,0.16972919]
[1693538364175,10.0,216.45,214.3,0.16972919]
[1693538364375,10.0,216.45,214.31,0.16972919]
[1693538364670,10.0,216.45,214.32,0.16972919]
[1693538364875,10.0,216.45,214.33,0.16972919]
[1693538365076,10.0,216.45,214.34,0.16972919]
[1693538365377,10.0,216.45,214.35,0.16972919]
[1693538365575,10.0,216.45,214.28,1.69729196]
[1693538375887,10.0,216.45,214.29,1.69729196]
[1693538384288,10.0,216.45,214.28,1.69729196]
[1693538392491,10.0,216.45,214.29,1.69729196]
[1693538396401,10.0,216.45,214.28,1.69729196]
[1693538398497,10.0,216.45,214.28,1.86702115]
[1693538398702,10.0,216.45,214.29,0.16972919]
[1693538398895,10.0,216.45,214.3,0.16972919]
[1693538399100,10.0,216.45,214.31,0.16972919]
[1693538399301,10.0,216.45,214.28,1.69729196]
[1693538400301,10.0,216.45,214.29,1.86702115]
[1693538400506,10.0,216.45,214.29,1.69729196]
[1693538434040,10.0,216.45,214.3,1.86702115]
[1693538434240,10.0,216.45,214.31,0.16972919]
[1693538434442,10.0,216.45,214.32,0.16972919]
[1693538434641,10.0,216.45,214.33,0.16972919]
[1693538434842,10.0,216.45,214.34,0.16972919]
[1693538435041,10.0,216.45,214.35,0.16972919]
[1693538435241,10.0,216.45,214.3,1.69729196]
[1693538436742,10.0,216.45,214.3,1.86702115]
[1693538437042,10.0,216.45,214.31,0.16972919]
[1693538437244,10.0,216.45,214.32,0.16972919]
[1693538437440,10.0,216.45,214.33,0.16972919]
[1693538437645,10.0,216.45,214.34,0.16972919]
[1693538437846,10.0,216.45,214.35,0.16972919]
[1693538438048,10.0,216.45,214.36,0.16972919]
[1693538438247,10.0,216.45,214.37,0.16972919]
[1693538438448,10.0,216.45,214.38,0.16972919]
[1693538438648,10.0,216.45,214.39,0.16972919]
[1693538438848,10.0,216.45,214.4,0.16972919]
[1693538439149,10.0,216.45,214.41,0.16972919]
[1693538439342,10.0,216.45,214.42,0.16972919]
[1693538439543,10.0,216.45,214.43,0.16972919]
[1693538439744,10.0,216.45,214.44,0.16972919]
[1693538440044,10.0,216.45,214.45,0.16972919]
[1693538440249,10.0,216.45,214.46,0.16972919]
[1693538440449,10.0,216.45,214.47,0.16972919]
[1693538440649,10.0,216.45,214.48,0.16972919]
[1693538440845,10.0,216.45,214.49,0.16972919]
[1693538441043,10.0,216.45,214.5,0.16972919]
[1693538441247,10.0,216.45,214.51,0.16972919]
[1693538441448,10.0,216.45,214.52,0.16972919]
[1693538441749,10.0,216.45,214.53,0.16972919]
[1693538441948,10.0,216.45,214.54,0.16972919]
[1693538442150,10.0,216.45,214.3,1.69729196]
[1693538445549,10.0,216.45,214.28,0.16972919]
[1693538445550,10.0,216.45,214.29,1.86702115]
[1693538445751,10.0,216.45,214.3,0.16972919]
[1693538445948,10.0,216.45,214.31,0.16972919]
[1693538446148,10.0,216.45,214.32,0.16972919]
[1693538446349,10.0,216.45,214.33,0.16972919]
[1693538446548,10.0,216.45,214.34,0.16972919]
[1693538446749,10.0,216.45,214.29,1.69729196]
[1693538448653,10.0,216.45,214.29,1.86702115]
[1693538448855,10.0,216.45,214.3,0.16972919]
[1693538449152,10.0,216.45,214.31,0.16972919]
[1693538449354,10.0,216.45,214.29,1.69729196]
[1693538449752,10.0,216.45,214.3,1.69729196]
[1693538458660,10.0,216.45,214.31,0.16972919]
[1693538458860,10.0,216.45,214.32,0.16972919]
[1693538459060,10.0,216.45,214.29,1.69729196]
[1693538466967,10.0,216.45,214.29,1.86702115]
[1693538467268,10.0,216.45,214.3,1.86702115]
[1693538467468,10.0,216.45,214.31,0.16972919]
[1693538467668,10.0,216.45,214.3,1.69729196]
[1693538527217,10.0,216.45,214.31,0.16972919]
[1693538527418,10.0,216.45,214.29,1.69729196]
[1693538530320,10.0,216.45,214.29,1.86702115]
[1693538530523,10.0,216.45,214.3,0.16972919]
[1693538530725,10.0,216.45,214.31,0.16972919]
[1693538531025,10.0,216.45,214.32,0.16972919]
[1693538531226,10.0,216.45,214.33,0.16972919]
[1693538531426,10.0,216.45,214.34,0.16972919]
[1693538531625,10.0,216.45,214.35,0.16972919]
[1693538531827,10.0,216.45,214.36,0.16972919]
[1693538532025,10.0,216.45,214.37,0.16972919]
[1693538532226,10.0,216.45,214.38,0.16972919]
[1693538532427,10.0,216.45,214.29,1.69729196]
[1693538539134,10.0,216.45,214.28,1.69729196]
[1693538564254,10.0,216.45,214.23,1.86702115]
[1693538581763,10.0,216.45,214.24,0.16972919]
[1693538581963,10.0,216.45,214.25,0.16972919]
[1693538582162,10.0,216.45,214.23,0.16972919]
[1693538582359,10.0,216.45,214.24,0.16972919]
[1693538582566,10.0,216.45,214.23,0.16972919]
[1693538582765,10.0,216.45,214.24,0.16972919]
[1693538582966,10.0,216.45,214.25,0.16972919]
[1693538583167,10.0,216.45,214.23,0.16972919]
[1693538583467,10.0,216.45,214.24,0.16972919]
[1693538583661,10.0,216.45,214.23,0.16972919]
[1693538583863,10.0,216.45,214.24,0.16972919]
[1693538584066,10.0,216.45,214.25,0.16972919]
[1693538584266,10.0,216.45,214.23,0.16972919]
[1693538584461,10.0,216.45,214.24,0.16972919]
[1693538584664,10.0,216.45,214.25,0.16972919]
[1693538584860,10.0,216.45,214.23,0.16972919]
[1693538585061,10.0,216.45,214.24,0.16972919]
[1693538585265,10.0,216.45,214.25,0.16972919]
[1693538585461,10.0,216.45,214.26,0.16972919]
[1693538585762,10.0,216.45,214.27,0.16972919]
[1693538585962,10.0,216.45,214.28,0.16972919]
[1693538586267,10.0,216.45,214.29,0.16972919]
[1693538586465,10.0,216.45,214.3,0.16972919]
[1693538586668,10.0,216.45,214.31,0.16972919]
[1693538586864,10.0,216.45,214.32,0.16972919]
[1693538587062,10.0,216.45,214.33,0.16972919]
[1693538587362,10.0,216.45,214.34,0.16972919]
[1693538587567,10.0,216.45,214.23,0.16972919]
[1693538593970,10.07536713,216.45,214.23,0.16972919]
[1693538595568,0.07536713,216.43,214.23,0.16972919]
[1693538598169,0.07536713,216.44,214.23,0.16972919]
[1693538602676,10.07536713,216.45,214.23,0.16972919]
[1693538603573,10.0,216.45,214.23,0.16972919]
[1693538605678,10.0,216.45,214.28,1.69729196]
[1693538764005,10.0,216.45,214.29,1.69729196]
[1693538773915,10.0,216.45,214.31,1.69729196]
[1693538774211,10.0,216.45,214.31,1.86702115]
[1693538774411,10.0,216.45,214.32,0.16972919]
[1693538774611,10.0,216.45,214.33,0.16972919]
[1693538774911,10.0,216.45,214.34,0.16972919]
[1693538775111,10.0,216.45,214.35,0.16972919]
[1693538775412,10.0,216.45,214.36,0.16972919]
[1693538775712,10.0,216.45,214.37,0.16972919]
[1693538775912,10.0,216.45,214.38,0.16972919]
[1693538776112,10.0,216.45,214.39,0.16972919]
[1693538776309,10.0,216.45,214.4,0.16972919]
[1693538776514,10.0,216.45,214.41,0.16972919]
[1693538776708,10.0,216.45,214.31,1.69729196]
[1693538784013,10.0,216.45,214.31,1.86702115]
[1693538784213,10.0,216.45,214.32,0.16972919]
[1693538784416,10.0,216.45,214.31,1.69729196]
[1693538793616,10.0,216.45,214.31,1.86702115]
[1693538793817,10.0,216.45,214.32,0.16972919]
[1693538794021,10.0,216.45,214.33,0.16972919]
[1693538794221,10.0,216.45,214.34,0.16972919]
[1693538794422,10.0,216.45,214.35,0.16972919]
[1693538794622,10.0,216.45,214.36,0.16972919]
[1693538794821,10.0,216.45,214.37,0.16972919]
[1693538795016,10.0,216.45,214.38,0.16972919]
[1693538795218,10.0,216.45,214.31,1.69729196]
[1693538804227,10.0,216.45,214.31,1.86702115]
[1693538804426,10.0,216.45,214.32,0.16972919]
[1693538804628,10.0,216.45,214.33,0.16972919]
[1693538804829,10.0,216.45,214.31,1.69729196]
[1693538859773,10.0,216.45,214.32,1.69729196]
[1693538868174,10.0,216.45,214.33,0.16972919]
[1693538868377,10.0,216.45,214.34,0.16972919]
[1693538868575,10.0,216.45,214.31,1.69729196]
[1693539007590,10.0,216.45,214.3,1.69729196]
[1693539010188,10.0,216.45,214.3,1.86702115]
[1693539010386,10.0,216.45,214.31,0.16972919]
[1693539010691,10.0,216.45,214.32,0.16972919]
[1693539010991,10.0,216.45,214.33,0.16972919]
[1693539011191,10.0,216.45,214.34,0.16972919]
[1693539011392,10.0,216.45,214.35,0.16972919]
[1693539011590,10.0,216.45,214.36,0.16972919]
[1693539011891,10.0,216.45,214.37,0.16972919]
[1693539012191,10.0,216.45,214.38,0.16972919]
[1693539012491,10.0,216.45,214.39,0.16972919]
[1693539012692,10.0,216.45,214.29,1.69729196]
[1693539012693,10.0,216.45,214.4,0.16972919]
[1693539012889,10.0,216.45,214.41,0.16972919]
[1693539013087,10.0,216.45,214.29,1.69729196]
[1693539015093,10.0,216.45,214.3,1.86702115]
[1693539015296,10.0,216.45,214.31,0.16972919]
[1693539015496,10.0,216.45,214.32,0.16972919]
[1693539015696,10.0,216.45,214.33,0.16972919]
[1693539015897,10.0,216.45,214.34,0.16972919]
[1693539016097,10.0,216.45,214.35,0.16972919]
[1693539016292,10.0,216.45,214.3,1.69729196]
[1693539026599,10.0,216.45,214.29,1.69729196]
[1693539092848,10.0,216.45,214.31,1.69729196]
[1693539096653,10.0,216.45,214.31,1.86702115]
[1693539096853,10.0,216.45,214.32,0.16972919]
[1693539097148,10.0,216.45,214.33,0.16972919]
[1693539097353,10.0,216.45,214.34,0.16972919]
[1693539097555,10.0,216.45,214.35,0.16972919]
[1693539097847,10.0,216.45,214.36,0.16972919]
[1693539098148,10.0,216.45,214.37,0.16972919]
[1693539098352,10.0,216.45,214.38,0.16972919]
[1693539098553,10.0,216.45,214.39,0.16972919]
[1693539098753,10.0,216.45,214.4,0.16972919]
[1693539098954,10.0,216.45,214.41,0.16972919]
[1693539099254,10.0,216.45,214.42,0.16972919]
[1693539099455,10.0,216.45,214.43,0.16972919]
[1693539099755,10.0,216.45,214.44,0.16972919]
[1693539100054,10.0,216.45,214.45,0.16972919]
[1693539100254,10.0,216.45,214.46,0.16972919]
[1693539100453,10.0,216.45,214.47,0.16972919]
[1693539100653,10.0,216.45,214.48,0.16972919]
[1693539100848,10.0,216.45,214.49,0.16972919]
[1693539101054,10.0,216.45,214.5,0.16972919]
[1693539101254,10.0,216.45,214.51,0.16972919]
[1693539101554,10.0,216.45,214.52,0.16972919]
[1693539101853,10.0,216.45,214.53,0.16972919]
[1693539102055,10.0,216.45,214.54,0.16972919]
[1693539102253,10.0,216.45,214.55,0.16972919]
[1693539102453,10.0,216.45,214.56,0.16972919]
[1693539102655,10.0,216.45,214.31,1.69729196]
[1693539103354,10.0,216.45,214.32,1.86702115]
[1693539103554,10.0,216.45,214.33,0.16972919]
[1693539103754,10.0,216.45,214.34,0.16972919]
[1693539103951,10.0,216.45,214.32,1.69729196]
[1693539103952,10.0,216.45,214.35,0.16972919]
[1693539104151,10.0,216.45,214.36,0.16972919]
[1693539104351,10.0,216.45,214.37,0.16972919]
[1693539104551,10.0,216.45,214.38,0.16972919]
[1693539104757,10.0,216.45,214.39,0.16972919]
[1693539105051,10.0,216.45,214.4,0.16972919]
[1693539105255,10.0,216.45,214.41,0.16972919]
[1693539105456,10.0,216.45,214.42,0.16972919]
[1693539105656,10.0,216.45,214.43,0.16972919]
[1693539105856,10.0,216.45,214.32,1.69729196]
[1693539106955,10.0,216.45,214.31,1.69729196]
[1693539107658,10.0,216.45,214.31,1.86702115]
[1693539107857,10.0,216.45,214.32,0.16972919]
[1693539108054,10.0,216.45,214.33,0.16972919]
[1693539108257,10.0,216.45,214.34,0.16972919]
[1693539108459,10.0,216.45,214.35,0.16972919]
[1693539108660,10.0,216.45,214.36,0.16972919]
[1693539108860,10.0,216.45,214.37,0.16972919]
[1693539109057,10.0,216.45,214.31,1.69729196]
[1693539111163,10.0,216.45,214.32,1.86702115]
[1693539111365,10.0,216.45,214.32,1.69729196]
[1693539111964,4.48433226,216.45,214.32,1.69729196]
[1693539115167,4.48433226,216.45,214.31,1.69729196]
[1693539126776,4.48433226,216.45,214.31,1.86702115]
[1693539126973,4.48433226,216.45,214.32,0.16972919]
[1693539127179,4.48433226,216.45,214.33,0.16972919]
[1693539127375,4.48433226,216.45,214.34,0.16972919]
[1693539127579,4.48433226,216.45,214.35,0.16972919]
[1693539127883,4.48433226,216.45,214.36,0.16972919]
[1693539128181,4.48433226,216.45,214.37,0.16972919]
[1693539128481,4.48433226,216.45,214.38,0.16972919]
[1693539128679,4.48433226,216.45,214.39,0.16972919]
[1693539128880,4.48433226,216.45,214.4,0.16972919]
[1693539129080,4.48433226,216.45,214.41,0.16972919]
[1693539129281,4.48433226,216.45,214.42,0.16972919]
[1693539129477,4.48433226,216.45,214.43,0.16972919]
[1693539129682,4.48433226,216.45,214.44,0.16972919]
[1693539129877,4.48433226,216.45,214.45,0.16972919]
[1693539130083,4.48433226,216.45,214.46,0.16972919]
[1693539130378,4.48433226,216.45,214.47,0.16972919]
[1693539130582,4.48433226,216.45,214.31,1.69729196]
[1693539183121,4.48433226,216.45,214.37,1.69729196]
[1693539198836,4.48433226,216.45,214.38,1.86702115]
[1693539199135,4.48433226,216.45,214.39,0.16972919]
[1693539199335,4.48433226,216.45,214.4,0.16972919]
[1693539199537,4.48433226,216.45,214.38,1.69729196]
[1693539202638,4.48433226,216.45,214.44,1.69729196]
[1693539206240,4.48433226,216.45,214.43,1.69729196]
[1693539232362,4.48433226,216.45,214.45,1.69729196]
[1693539236159,4.48433226,216.45,214.46,1.69729196]
[1693539243768,4.48433226,216.45,214.47,1.69729196]
[1693539251975,4.48433226,216.45,214.48,1.86702115]
[1693539252172,4.48433226,216.45,214.49,0.16972919]
[1693539252372,4.48433226,216.45,214.5,0.16972919]
[1693539252570,4.48433226,216.45,214.51,0.16972919]
[1693539252770,4.48433226,216.45,214.52,0.16972919]
[1693539252973,4.48433226,216.45,214.53,0.16972919]
[1693539253173,4.48433226,216.45,214.48,1.69729196]
[1693539282995,4.48433226,216.45,214.48,1.86702115]
[1693539283294,4.48433226,216.45,214.49,0.16972919]
[1693539283488,4.48433226,216.45,214.48,1.69729196]
[1693539301610,4.48433226,216.45,214.49,1.69729196]
[1693539309013,4.48433226,216.45,214.48,1.69729196]
[1693539312614,4.48433226,216.45,214.49,0.16972919]
[1693539312810,4.48433226,216.45,214.5,0.16972919]
[1693539313016,4.48433226,216.45,214.51,0.16972919]
[1693539313214,4.48433226,216.45,214.52,0.16972919]
[1693539313416,4.48433226,216.45,214.47,1.69729196]
[1693539322825,4.48433226,216.45,214.48,1.86702115]
[1693539323125,4.48433226,216.45,214.49,0.16972919]
[1693539323326,4.48433226,216.45,214.5,0.16972919]
[1693539323627,4.48433226,216.45,214.51,0.16972919]
[1693539323926,4.48433226,216.45,214.52,0.16972919]
[1693539324126,4.48433226,216.45,214.53,0.16972919]
[1693539324322,4.48433226,216.45,214.54,0.16972919]
[1693539324527,4.48433226,216.45,214.55,0.16972919]
[1693539324727,4.48433226,216.45,214.56,0.16972919]
[1693539325022,4.48433226,216.45,214.57,0.16972919]
[1693539325221,4.48433226,216.45,214.58,0.16972919]
[1693539325426,4.48433226,216.45,214.59,0.16972919]
[1693539325728,4.48433226,216.45,214.6,0.16972919]
[1693539325928,4.48433226,216.45,214.61,0.16972919]
[1693539326121,4.48433226,216.45,214.62,0.16972919]
[1693539326325,4.48433226,216.45,214.63,0.16972919]
[1693539326625,4.48433226,216.45,214.64,0.16972919]
[1693539326825,4.48433226,216.45,214.65,0.16972919]
[1693539327026,4.48433226,216.45,214.66,0.16972919]
[1693539327222,4.48433226,216.45,214.67,0.16972919]
[1693539327426,4.48433226,216.45,214.68,0.16972919]
[1693539327622,4.48433226,216.45,214.69,0.16972919]
[1693539327821,4.48433226,216.45,214.7,0.16972919]
[1693539328026,4.48433226,216.45,214.71,0.16972919]
[1693539328225,4.48433226,216.45,214.72,0.16972919]
[1693539328527,4.48433226,216.45,214.73,0.16972919]
[1693539328728,4.48433226,216.45,214.74,0.16972919]
[1693539329028,4.48433226,216.45,214.75,0.16972919]
[1693539329229,4.48433226,216.45,214.76,0.16972919]
[1693539329529,4.48433226,216.45,214.77,0.16972919]
[1693539329727,4.48433226,216.45,214.78,0.16972919]
[1693539329927,4.48433226,216.45,214.79,0.16972919]
[1693539330129,4.48433226,216.45,214.8,0.16972919]
[1693539330331,4.48433226,216.45,214.81,0.16972919]
[1693539330531,4.48433226,216.45,214.82,0.16972919]
[1693539330723,4.48433226,216.45,214.83,0.16972919]
[1693539330928,4.48433226,216.45,214.84,0.16972919]
[1693539331129,4.48433226,216.45,214.85,0.16972919]
[1693539331328,4.48433226,216.45,214.86,0.16972919]
[1693539331529,4.48433226,216.45,214.87,0.16972919]
[1693539331725,4.48433226,216.45,214.88,0.16972919]
[1693539331930,4.48433226,216.45,214.89,0.16972919]
[1693539332132,4.48433226,216.45,214.9,0.16972919]
[1693539332328,4.48433226,216.45,214.91,0.16972919]
[1693539332532,4.48433226,216.45,214.92,0.16972919]
[1693539332831,4.48433226,216.45,214.93,0.16972919]
[1693539333031,4.48433226,216.45,214.94,0.16972919]
[1693539333231,4.48433226,216.45,214.95,0.16972919]
[1693539333432,4.48433226,216.45,214.48,1.69729196]
[1693539336337,4.48433226,216.45,214.49,1.86702115]
[1693539336637,4.48433226,216.45,214.5,0.16972919]
[1693539336838,4.48433226,216.45,214.51,0.16972919]
[1693539337030,4.48433226,216.45,214.52,0.16972919]
[1693539337233,4.48433226,216.45,214.53,0.16972919]
[1693539337435,4.48433226,216.45,214.54,0.16972919]
[1693539337633,4.48433226,216.45,214.55,0.16972919]
[1693539337838,4.48433226,216.45,214.56,0.16972919]
[1693539338135,4.48433226,216.45,214.57,0.16972919]
[1693539338439,4.48433226,216.45,214.58,0.16972919]
[1693539338639,4.48433226,216.45,214.59,0.16972919]
[1693539338838,4.48433226,216.45,214.6,0.16972919]
[1693539339039,4.48433226,216.45,214.61,0.16972919]
[1693539339334,4.48433226,216.45,214.62,0.16972919]
[1693539339540,4.48433226,216.45,214.63,0.16972919]
[1693539339739,4.48433226,216.45,214.64,0.16972919]
[1693539339940,4.48433226,216.45,214.65,0.16972919]
[1693539340139,4.48433226,216.45,214.66,0.16972919]
[1693539340341,4.48433226,216.45,214.67,0.16972919]
[1693539340638,4.48433226,216.45,214.68,0.16972919]
[1693539340839,4.48433226,216.45,214.69,0.16972919]
[1693539341039,4.48433226,216.45,214.7,0.16972919]
[1693539341238,4.48433226,216.45,214.71,0.16972919]
[1693539341539,4.48433226,216.45,214.72,0.16972919]
[1693539341738,4.48433226,216.45,214.73,0.16972919]
[1693539341938,4.48433226,216.45,214.74,0.16972919]
[1693539342138,4.48433226,216.45,214.75,0.16972919]
[1693539342337,4.48433226,216.45,214.76,0.16972919]
[1693539342537,4.48433226,216.45,214.77,0.16972919]
[1693539342737,4.48433226,216.45,214.78,0.16972919]
[1693539342934,4.48433226,216.45,214.79,0.16972919]
[1693539343138,4.48433226,216.45,214.8,0.16972919]
[1693539343435,4.48433226,216.45,214.81,0.16972919]
[1693539343743,4.48433226,216.45,214.82,0.16972919]
[1693539343934,4.48433226,216.45,214.83,0.16972919]
[1693539344241,4.48433226,216.45,214.84,0.16972919]
[1693539344539,4.48433226,216.45,214.85,0.16972919]
[1693539344733,4.48433226,216.45,214.86,0.16972919]
[1693539344934,4.48433226,216.45,214.87,0.16972919]
[1693539345137,4.48433226,216.45,214.88,0.16972919]
[1693539345338,4.48433226,216.45,214.89,0.16972919]
[1693539345538,4.48433226,216.45,214.9,0.16972919]
[1693539345735,4.48433226,216.45,214.91,0.16972919]
[1693539345940,4.48433226,216.45,214.92,0.16972919]
[1693539346142,4.48433226,216.45,214.93,0.16972919]
[1693539346442,4.48433226,216.45,214.94,0.16972919]
[1693539346638,4.48433226,216.45,214.95,0.16972919]
[1693539346941,4.48433226,216.45,214.96,0.16972919]
[1693539347140,4.48433226,216.45,214.97,0.16972919]
[1693539347340,4.48433226,216.45,214.98,0.16972919]
[1693539347540,4.48433226,216.45,214.99,0.16972919]
[1693539347744,4.48433226,216.45,215.0,0.16972919]
[1693539347942,4.48433226,216.45,215.01,0.16972919]
[1693539348241,4.48433226,216.45,215.02,0.16972919]
[1693539348442,4.48433226,216.45,215.03,0.16972919]
[1693539348642,4.48433226,216.45,215.04,0.16972919]
[1693539348842,4.48433226,216.45,215.05,0.16972919]
[1693539349043,4.48433226,216.45,215.06,0.16972919]
[1693539349244,4.48433226,216.45,215.07,0.16972919]
[1693539349445,4.48433226,216.45,215.08,0.16972919]
[1693539349646,4.48433226,216.45,215.09,0.16972919]
[1693539349845,4.48433226,216.45,215.1,0.16972919]
[1693539350038,4.48433226,216.45,215.11,0.16972919]
[1693539350242,4.48433226,216.45,215.12,0.16972919]
[1693539350544,4.48433226,216.45,215.13,0.16972919]
[1693539350745,4.48433226,216.45,215.14,0.16972919]
[1693539350942,4.48433226,216.45,215.15,0.16972919]
[1693539351142,4.48433226,216.45,215.16,0.16972919]
[1693539351338,4.48433226,216.45,215.17,0.16972919]
[1693539351539,4.48433226,216.45,215.18,0.16972919]
[1693539351743,4.48433226,216.45,215.19,0.16972919]
[1693539352043,4.48433226,216.45,215.2,0.16972919]
[1693539352244,4.48433226,216.45,214.49,1.69729196]
[1693539360843,4.48433226,216.45,214.5,1.69729196]
[1693539365050,4.48433226,216.45,214.51,1.69729196]
[1693539369156,4.48433226,216.45,214.5,1.69729196]
[1693539381164,4.48433226,216.45,214.51,1.69729196]
[1693539396373,4.48433226,216.45,214.5,1.69729196]
[1693539400386,4.48433226,216.45,214.51,1.69729196]
[1693539428009,4.48433226,216.45,214.52,1.86702115]
[1693539428208,4.48433226,216.45,214.53,0.16972919]
[1693539428407,4.48433226,216.45,214.54,0.16972919]
[1693539428607,4.48433226,216.45,214.55,0.16972919]
[1693539428807,4.48433226,216.45,214.56,0.16972919]
[1693539429010,4.48433226,216.45,214.57,0.16972919]
[1693539429211,4.48433226,216.45,214.58,0.16972919]
[1693539429413,4.48433226,216.45,214.59,0.16972919]
[1693539429611,4.48433226,216.45,214.6,0.16972919]
[1693539429812,4.48433226,216.45,214.61,0.16972919]
[1693539430009,4.48433226,216.45,214.62,0.16972919]
[1693539430309,4.48433226,216.45,214.63,0.16972919]
[1693539430513,4.48433226,216.45,214.52,1.69729196]
[1693539456332,4.48433226,216.45,214.58,1.69729196]
[1693539463637,4.48433226,216.45,214.58,1.86702115]
[1693539463936,4.48433226,216.45,214.59,0.16972919]
[1693539464134,4.48433226,216.45,214.6,0.16972919]
[1693539464338,4.48433226,216.45,214.61,0.16972919]
[1693539464636,4.48433226,216.45,214.62,0.16972919]
[1693539464838,4.48433226,216.45,214.63,0.16972919]
[1693539465037,4.48433226,216.45,214.64,0.16972919]
[1693539465338,4.48433226,216.45,214.65,0.16972919]
[1693539465636,4.48433226,216.45,214.66,0.16972919]
[1693539465838,4.48433226,216.45,214.67,0.16972919]
[1693539466039,4.48433226,216.45,214.68,0.16972919]
[1693539466239,4.48433226,216.45,214.69,0.16972919]
[1693539466535,4.48433226,216.45,214.7,0.16972919]
[1693539466734,4.48433226,216.45,214.71,0.16972919]
[1693539467039,4.48433226,216.45,214.72,0.16972919]
[1693539467335,4.48433226,216.45,214.73,0.16972919]
[1693539467539,4.48433226,216.45,214.74,0.16972919]
[1693539467740,4.48433226,216.45,214.75,0.16972919]
[1693539468039,4.48433226,216.45,214.76,0.16972919]
[1693539468240,4.48433226,216.45,214.77,0.16972919]
[1693539468437,4.48433226,216.45,214.58,1.69729196]
[1693539491457,4.48433226,216.45,214.56,1.69729196]
[1693539495356,4.48433226,216.45,214.57,1.69729196]
[1693539536789,4.48433226,216.45,214.56,1.69729196]
[1693539540189,4.48433226,216.45,214.57,1.86702115]
[1693539540390,4.48433226,216.45,214.58,0.16972919]
[1693539540588,4.48433226,216.45,214.59,0.16972919]
[1693539540791,4.48433226,216.45,214.6,0.16972919]